[Event "Early-Titled-Tuesday-Blitz-September-12-2023"]
[Site "Chess.com"]
[Date "2023.09.12"]
[Round "3"]
[White "Kaua18"]
[Black "Byniolus"]
[Result "1/2-1/2"]
[WhiteElo "2510"]
[BlackElo "2795"]
[TimeControl "180+1"]
[EndTime "8:30:46 PDT"]
[Termination "Game drawn by 50-move rule"]

1. e4 {[%clk 0:03:00.4]} 1... d6 {[%clk 0:03:00.2]} 2. d4 {[%clk 0:03:00.4]}
2... Nf6 {[%clk 0:03:01.1]} 3. Nc3 {[%clk 0:03:00.2]} 3... c6 {[%clk 0:03:01.8]}
4. f4 {[%clk 0:02:58.7]} 4... Qb6 {[%clk 0:03:01.3]} 5. Nf3 {[%clk 0:02:58]}
5... Bg4 {[%clk 0:03:01.1]} 6. Bc4 {[%clk 0:02:48.5]} 6... e6 {[%clk 0:02:59]}
7. Bb3 {[%clk 0:02:44.7]} 7... d5 {[%clk 0:02:58.2]} 8. e5 {[%clk 0:02:40.7]}
8... Nfd7 {[%clk 0:02:58.5]} 9. Be3 {[%clk 0:02:40]} 9... c5 {[%clk 0:02:56.6]}
10. dxc5 {[%clk 0:02:37.5]} 10... Bxc5 {[%clk 0:02:52.8]} 11. Na4 {[%clk
0:02:35.4]} 11... Qb4+ {[%clk 0:02:49.2]} 12. Bd2 {[%clk 0:02:26.8]} 12... Qe4+
{[%clk 0:02:46.9]} 13. Qe2 {[%clk 0:02:27]} 13... Bxf3 {[%clk 0:02:37.5]} 14.
gxf3 {[%clk 0:02:25.5]} 14... Qxe2+ {[%clk 0:02:37.9]} 15. Kxe2 {[%clk
0:02:25.7]} 15... Be7 {[%clk 0:02:16.4]} 16. c4 {[%clk 0:02:19.4]} 16... dxc4
{[%clk 0:02:10.2]} 17. Bxc4 {[%clk 0:02:20.3]} 17... Nc6 {[%clk 0:02:11]} 18.
Bc3 {[%clk 0:02:19.3]} 18... a6 {[%clk 0:02:01.8]} 19. f5 {[%clk 0:01:53.5]}
19... b5 {[%clk 0:01:36.8]} 20. fxe6 {[%clk 0:01:52.5]} 20... fxe6 {[%clk
0:01:37.7]} 21. Bxe6 {[%clk 0:01:49.1]} 21... bxa4 {[%clk 0:01:38.2]} 22. Rhg1
{[%clk 0:01:40.9]} 22... g6 {[%clk 0:00:50.3]} 23. Bxd7+ {[%clk 0:01:19.9]}
23... Kxd7 {[%clk 0:00:51.2]} 24. e6+ {[%clk 0:01:20.3]} 24... Kxe6 {[%clk
0:00:51.5]} 25. Bxh8 {[%clk 0:01:20.9]} 25... Rxh8 {[%clk 0:00:52.1]} 26. Rg4
{[%clk 0:01:21]} 26... Rb8 {[%clk 0:00:45.5]} 27. Re4+ {[%clk 0:01:15.3]} 27...
Kf7 {[%clk 0:00:39.1]} 28. Rxa4 {[%clk 0:01:09.7]} 28... Rxb2+ {[%clk
0:00:39.3]} 29. Ke3 {[%clk 0:01:07.9]} 29... a5 {[%clk 0:00:32]} 30. Rc1 {[%clk
0:01:07.7]} 30... Rb6 {[%clk 0:00:30.8]} 31. Rd1 {[%clk 0:00:44.5]} 31... g5
{[%clk 0:00:18]} 32. f4 {[%clk 0:00:40.3]} 32... Rb4 {[%clk 0:00:12.1]} 33. Rxb4
{[%clk 0:00:37.3]} 33... axb4 {[%clk 0:00:13]} 34. fxg5 {[%clk 0:00:26.1]} 34...
Bxg5+ {[%clk 0:00:13.9]} 35. Ke4 {[%clk 0:00:26.8]} 35... Be7 {[%clk 0:00:12.2]}
36. Rd7 {[%clk 0:00:21.3]} 36... h5 {[%clk 0:00:08.9]} 37. Kf5 {[%clk
0:00:20.3]} 37... h4 {[%clk 0:00:05.4]} 38. Rc7 {[%clk 0:00:19.9]} 38... Nd4+
{[%clk 0:00:05.3]} 39. Ke5 {[%clk 0:00:16.8]} 39... Nf3+ {[%clk 0:00:04.9]} 40.
Kf5 {[%clk 0:00:14.2]} 40... Nxh2 {[%clk 0:00:05.8]} 41. Rc2 {[%clk 0:00:10.6]}
41... Nf3 {[%clk 0:00:01.7]} 42. Rf2 {[%clk 0:00:08.5]} 42... Ne1 {[%clk
0:00:01.5]} 43. Rd2 {[%clk 0:00:03.6]} 43... Ke8 {[%clk 0:00:02]} 44. Kg4 {[%clk
0:00:03.3]} 44... b3 {[%clk 0:00:01.6]} 45. axb3 {[%clk 0:00:02.9]} 45... Kf7
{[%clk 0:00:01.9]} 46. Re2 {[%clk 0:00:02.5]} 46... Nd3 {[%clk 0:00:02.3]} 47.
Re4 {[%clk 0:00:01.9]} 47... Nc5 {[%clk 0:00:02.3]} 48. Rc4 {[%clk 0:00:01.8]}
48... Nxb3 {[%clk 0:00:02.1]} 49. Kh3 {[%clk 0:00:02.5]} 49... Ke6 {[%clk
0:00:02.4]} 50. Rxh4 {[%clk 0:00:03.4]} 50... Nc5 {[%clk 0:00:02.8]} 51. Rh6+
{[%clk 0:00:03.8]} 51... Kd7 {[%clk 0:00:03.2]} 52. Rh5 {[%clk 0:00:04.3]} 52...
Ne6 {[%clk 0:00:04]} 53. Re5 {[%clk 0:00:04.5]} 53... Kd6 {[%clk 0:00:04.2]} 54.
Re1 {[%clk 0:00:04.3]} 54... Bf6 {[%clk 0:00:03.7]} 55. Kg4 {[%clk 0:00:04.1]}
55... Bd4 {[%clk 0:00:04.6]} 56. Kf5 {[%clk 0:00:03.8]} 56... Kd5 {[%clk
0:00:05.5]} 57. Rxe6 {[%clk 0:00:03.5]} 57... Bc5 {[%clk 0:00:05.1]} 58. Re4
{[%clk 0:00:03.9]} 58... Kc6 {[%clk 0:00:03.9]} 59. Re2 {[%clk 0:00:04.2]} 59...
Bb6 {[%clk 0:00:04.4]} 60. Ke4 {[%clk 0:00:05.1]} 60... Kb7 {[%clk 0:00:05.2]}
61. Rc2 {[%clk 0:00:05.7]} 61... Ba7 {[%clk 0:00:05.6]} 62. Kd5 {[%clk
0:00:06.6]} 62... Ka8 {[%clk 0:00:06.5]} 63. Rb2 {[%clk 0:00:07.1]} 63... Bb8
{[%clk 0:00:07.4]} 64. Kc6 {[%clk 0:00:07.5]} 64... Ba7 {[%clk 0:00:08.3]} 65.
Rb1 {[%clk 0:00:07.3]} 65... Be3 {[%clk 0:00:07.5]} 66. Re1 {[%clk 0:00:06.3]}
66... Bf2 {[%clk 0:00:07]} 67. Re8+ {[%clk 0:00:05.7]} 67... Ka7 {[%clk
0:00:07.6]} 68. Re2 {[%clk 0:00:06.2]} 68... Bd4 {[%clk 0:00:07.7]} 69. Kc7
{[%clk 0:00:06]} 69... Ka8 {[%clk 0:00:07]} 70. Re8+ {[%clk 0:00:04.7]} 70...
Ka7 {[%clk 0:00:07.2]} 71. Re4 {[%clk 0:00:05.3]} 71... Bb6+ {[%clk 0:00:07.1]}
72. Kc6 {[%clk 0:00:05.7]} 72... Bd8 {[%clk 0:00:06.1]} 73. Ra4+ {[%clk
0:00:03.7]} 73... Kb8 {[%clk 0:00:06.4]} 74. Rb4+ {[%clk 0:00:03.6]} 74... Ka8
{[%clk 0:00:06]} 75. Rb7 {[%clk 0:00:03]} 75... Ba5 {[%clk 0:00:05.4]} 76. Rb1
{[%clk 0:00:02.8]} 76... Bd8 {[%clk 0:00:04.9]} 77. Rd1 {[%clk 0:00:03.4]} 77...
Bf6 {[%clk 0:00:04]} 78. Kb6 {[%clk 0:00:03.6]} 78... Be7 {[%clk 0:00:02.8]} 79.
Rd7 {[%clk 0:00:03.4]} 79... Bg5 {[%clk 0:00:01.8]} 80. Rg7 {[%clk 0:00:02.4]}
80... Be3+ {[%clk 0:00:01.7]} 81. Ka6 {[%clk 0:00:02.9]} 81... Bf4 {[%clk
0:00:02]} 82. Rg8+ {[%clk 0:00:02.5]} 82... Bb8 {[%clk 0:00:02.9]} 83. Rg7
{[%clk 0:00:02.1]} 83... Be5 {[%clk 0:00:02.2]} 84. Rh7 {[%clk 0:00:02.6]} 84...
Bd6 {[%clk 0:00:02.3]} 85. Rd7 {[%clk 0:00:02.9]} 85... Bb8 {[%clk 0:00:03.2]}
86. Kb6 {[%clk 0:00:03.3]} 86... Bf4 {[%clk 0:00:02.5]} 87. Rd1 {[%clk
0:00:04.2]} 87... Be3+ {[%clk 0:00:02.6]} 88. Kc7 {[%clk 0:00:05.1]} 88... Ba7
{[%clk 0:00:02.4]} 89. Kc8 {[%clk 0:00:06]} 89... Bb6 {[%clk 0:00:02.3]} 90. Rb1
{[%clk 0:00:06.6]} 90... Ba7 {[%clk 0:00:03.2]} 91. Rb7 {[%clk 0:00:06.7]} 91...
Bc5 {[%clk 0:00:03.2]} 92. Rb8+ {[%clk 0:00:07.2]} 92... Ka7 {[%clk 0:00:03.4]}
93. Rb5 {[%clk 0:00:08.1]} 93... Bb6 {[%clk 0:00:03.9]} 94. Rb2 {[%clk
0:00:07.9]} 94... Ka6 {[%clk 0:00:04.8]} 95. Kd7 {[%clk 0:00:07.2]} 95... Kb7
{[%clk 0:00:05.4]} 96. Rb1 {[%clk 0:00:07]} 96... Ka7 {[%clk 0:00:02.9]} 97. Kc6
{[%clk 0:00:07.9]} 97... Bd4 {[%clk 0:00:03.3]} 98. Rb4 {[%clk 0:00:07.5]} 98...
Be3 {[%clk 0:00:02.9]} 99. Ra4+ {[%clk 0:00:07.8]} 99... Kb8 {[%clk 0:00:02.5]}
100. Ra6 {[%clk 0:00:08.1]} 100... Bf2 {[%clk 0:00:02.3]} 101. Ra2 {[%clk
0:00:08.4]} 101... Bd4 {[%clk 0:00:02.6]} 102. Rd2 {[%clk 0:00:08.7]} 102... Be3
{[%clk 0:00:02.8]} 103. Rd3 {[%clk 0:00:09.1]} 103... Bf2 {[%clk 0:00:02.9]}
104. Rd8+ {[%clk 0:00:09.7]} 104... Ka7 {[%clk 0:00:03.3]} 105. Rf8 {[%clk
0:00:10.4]} 105... Bd4 {[%clk 0:00:03.3]} 106. Rf4 {[%clk 0:00:10.9]} 106... Be3
{[%clk 0:00:03.5]} 107. Re4 {[%clk 0:00:11.2]} 1/2-1/2

[Event "Early-Titled-Tuesday-Blitz-September-12-2023"]
[Site "Chess.com"]
[Date "2023.09.12"]
[Round "4"]
[White "Keithonsky"]
[Black "Smiechu"]
[Result "0-1"]
[WhiteElo "2600"]
[BlackElo "2458"]
[TimeControl "180+1"]
[EndTime "8:33:16 PDT"]
[Termination "Smiechu won by resignation"]

1. d4 {[%clk 0:02:58]} 1... Nf6 {[%clk 0:02:59.4]} 2. Nc3 {[%clk 0:02:58.6]}
2... d5 {[%clk 0:02:56.1]} 3. Bf4 {[%clk 0:02:59]} 3... c5 {[%clk 0:02:47.4]} 4.
e3 {[%clk 0:02:57.2]} 4... Nc6 {[%clk 0:02:47.2]} 5. Nb5 {[%clk 0:02:55.9]} 5...
e5 {[%clk 0:02:41.3]} 6. dxe5 {[%clk 0:02:56]} 6... a6 {[%clk 0:02:10.9]} 7.
exf6 {[%clk 0:02:51.1]} 7... axb5 {[%clk 0:02:10.1]} 8. Bxb5 {[%clk 0:02:42.7]}
8... Qa5+ {[%clk 0:02:05.3]} 9. c3 {[%clk 0:02:42.9]} 9... Qxb5 {[%clk
0:02:03.8]} 10. Qxd5 {[%clk 0:02:43.4]} 10... Be6 {[%clk 0:01:59.9]} 11. Qg5
{[%clk 0:02:40.3]} 11... Qxb2 {[%clk 0:01:45.2]} 12. Rd1 {[%clk 0:02:38.9]}
12... Qxc3+ {[%clk 0:01:44.8]} 0-1

[Event "Early-Titled-Tuesday-Blitz-September-12-2023"]
[Site "Chess.com"]
[Date "2023.09.12"]
[Round "4"]
[White "Alexei_Gubajdullin"]
[Black "Massakru"]
[Result "1-0"]
[WhiteElo "2615"]
[BlackElo "2405"]
[TimeControl "180+1"]
[EndTime "8:33:26 PDT"]
[Termination "Alexei_Gubajdullin won by resignation"]

1. d4 {[%clk 0:03:00]} 1... Nf6 {[%clk 0:02:59.7]} 2. Nf3 {[%clk 0:02:59.9]}
2... e6 {[%clk 0:02:59.3]} 3. Bf4 {[%clk 0:03:00.4]} 3... c5 {[%clk 0:02:59.2]}
4. e3 {[%clk 0:03:00.4]} 4... Nc6 {[%clk 0:02:58]} 5. Nbd2 {[%clk 0:03:00.4]}
5... b6 {[%clk 0:02:51.1]} 6. c3 {[%clk 0:02:59.6]} 6... Nh5 {[%clk 0:02:48.9]}
7. Bg5 {[%clk 0:02:58.6]} 7... Be7 {[%clk 0:02:49.1]} 8. Bxe7 {[%clk 0:02:58.2]}
8... Qxe7 {[%clk 0:02:50]} 9. Bd3 {[%clk 0:02:58.1]} 9... Bb7 {[%clk 0:02:48.3]}
10. O-O {[%clk 0:02:57.7]} 10... g6 {[%clk 0:02:34.3]} 11. Ne5 {[%clk
0:02:56.9]} 11... Nxe5 {[%clk 0:02:33.3]} 12. dxe5 {[%clk 0:02:57]} 12... O-O
{[%clk 0:02:27.6]} 13. Be4 {[%clk 0:02:56.7]} 13... Bc6 {[%clk 0:02:22.9]} 14.
Bxc6 {[%clk 0:02:53.1]} 14... dxc6 {[%clk 0:02:23.1]} 15. g4 {[%clk 0:02:53.1]}
15... Ng7 {[%clk 0:02:15.4]} 16. Ne4 {[%clk 0:02:52.9]} 16... Rad8 {[%clk
0:02:11.8]} 17. Qf3 {[%clk 0:02:52.3]} 17... h5 {[%clk 0:01:57.4]} 18. Nf6+
{[%clk 0:02:50.4]} 18... Kh8 {[%clk 0:01:56.8]} 19. Qf4 {[%clk 0:02:50.2]} 1-0

[Event "Early-Titled-Tuesday-Blitz-September-12-2023"]
[Site "Chess.com"]
[Date "2023.09.12"]
[Round "4"]
[White "Schattman"]
[Black "Goryachkina"]
[Result "1/2-1/2"]
[WhiteElo "2479"]
[BlackElo "2666"]
[TimeControl "180+1"]
[EndTime "8:33:28 PDT"]
[Termination "Game drawn by agreement"]

1. d4 {[%clk 0:03:00.9]} 1... Nf6 {[%clk 0:02:59.2]} 2. Bf4 {[%clk 0:02:58.6]}
2... e6 {[%clk 0:02:57]} 3. Nf3 {[%clk 0:02:52.9]} 3... Bd6 {[%clk 0:02:53.7]}
4. Bxd6 {[%clk 0:02:51]} 4... cxd6 {[%clk 0:02:53.9]} 5. Nbd2 {[%clk 0:02:51]}
5... O-O {[%clk 0:02:52.4]} 6. e4 {[%clk 0:02:50.4]} 6... b6 {[%clk 0:02:46.2]}
7. Bd3 {[%clk 0:02:48.7]} 7... Ba6 {[%clk 0:02:46]} 8. Qe2 {[%clk 0:02:48.3]}
8... Bxd3 {[%clk 0:02:44.1]} 9. Qxd3 {[%clk 0:02:49.2]} 9... d5 {[%clk
0:02:42.3]} 10. e5 {[%clk 0:02:47.4]} 10... Ne8 {[%clk 0:02:41.4]} 11. c4 {[%clk
0:02:44.8]} 11... dxc4 {[%clk 0:02:32.5]} 12. Nxc4 {[%clk 0:02:41.8]} 12... Nc6
{[%clk 0:02:28.2]} 13. O-O {[%clk 0:02:33.8]} 13... Rc8 {[%clk 0:02:26]} 14.
Rfc1 {[%clk 0:02:25]} 14... h6 {[%clk 0:02:25.2]} 15. Qd2 {[%clk 0:02:17.3]}
15... d5 {[%clk 0:02:20.4]} 16. Ne3 {[%clk 0:02:12.1]} 1/2-1/2

[Event "Early-Titled-Tuesday-Blitz-September-12-2023"]
[Site "Chess.com"]
[Date "2023.09.12"]
[Round "4"]
[White "S-Fazulyanov"]
[Black "DavidLana1987"]
[Result "1-0"]
[WhiteElo "2471"]
[BlackElo "2602"]
[TimeControl "180+1"]
[EndTime "8:33:37 PDT"]
[Termination "S-Fazulyanov won by checkmate"]

1. e4 {[%clk 0:03:00]} 1... c5 {[%clk 0:02:59.6]} 2. Nf3 {[%clk 0:03:00.6]} 2...
Nc6 {[%clk 0:02:59.9]} 3. d4 {[%clk 0:03:00.9]} 3... cxd4 {[%clk 0:03:00.5]} 4.
Nxd4 {[%clk 0:03:01.6]} 4... e5 {[%clk 0:03:01.1]} 5. Nb5 {[%clk 0:03:01.6]}
5... a6 {[%clk 0:03:01.3]} 6. N5c3 {[%clk 0:02:59.8]} 6... Nf6 {[%clk
0:03:00.5]} 7. Bg5 {[%clk 0:02:56.8]} 7... Bc5 {[%clk 0:02:54.4]} 8. Bc4 {[%clk
0:02:43.7]} 8... Qb6 {[%clk 0:02:53.2]} 9. Bxf6 {[%clk 0:02:40.8]} 9... gxf6
{[%clk 0:02:50.9]} 10. O-O {[%clk 0:02:29.7]} 10... Qxb2 {[%clk 0:02:50]} 11.
Qd5 {[%clk 0:02:29.3]} 11... Be7 {[%clk 0:02:32.9]} 12. Qxf7+ {[%clk 0:02:16.4]}
12... Kd8 {[%clk 0:02:32.8]} 13. Nd5 {[%clk 0:02:07.4]} 13... Qxa1 {[%clk
0:02:32.3]} 14. Nxe7 {[%clk 0:01:48.3]} 14... Nxe7 {[%clk 0:02:29.4]} 15. Qxf6
{[%clk 0:01:48.3]} 15... Re8 {[%clk 0:02:28.8]} 16. Qb6# {[%clk 0:01:44.4]} 1-0

[Event "Early-Titled-Tuesday-Blitz-September-12-2023"]
[Site "Chess.com"]
[Date "2023.09.12"]
[Round "4"]
[White "arminmusovic"]
[Black "Masterbeaterr"]
[Result "1-0"]
[WhiteElo "2559"]
[BlackElo "2391"]
[TimeControl "180+1"]
[EndTime "8:34:23 PDT"]
[Termination "arminmusovic won by resignation"]

1. a3 {[%clk 0:02:54.9]} 1... e5 {[%clk 0:02:59.2]} 2. d4 {[%clk 0:02:54.7]}
2... exd4 {[%clk 0:02:56.4]} 3. Qxd4 {[%clk 0:02:55.6]} 3... Nc6 {[%clk
0:02:56.6]} 4. Qa4 {[%clk 0:02:55.7]} 4... Nf6 {[%clk 0:02:56]} 5. Nc3 {[%clk
0:02:53.6]} 5... Be7 {[%clk 0:02:55.7]} 6. Bg5 {[%clk 0:02:53.8]} 6... O-O
{[%clk 0:02:55.5]} 7. O-O-O {[%clk 0:02:54.4]} 7... h6 {[%clk 0:02:52.4]} 8. Bh4
{[%clk 0:02:53.9]} 8... d6 {[%clk 0:02:51.4]} 9. e3 {[%clk 0:02:54.1]} 9... Bf5
{[%clk 0:02:50.4]} 10. Nf3 {[%clk 0:02:50.6]} 10... a6 {[%clk 0:02:42.9]} 11.
Bxf6 {[%clk 0:02:50.9]} 11... Bxf6 {[%clk 0:02:42.7]} 12. Nd5 {[%clk 0:02:51.7]}
12... Ne5 {[%clk 0:02:29.8]} 13. Qf4 {[%clk 0:02:47]} 13... Be6 {[%clk
0:02:20.1]} 14. Nxf6+ {[%clk 0:02:38.6]} 14... Qxf6 {[%clk 0:02:21]} 15. Qxf6
{[%clk 0:02:38.4]} 15... gxf6 {[%clk 0:02:21.5]} 16. h3 {[%clk 0:02:34.2]} 16...
d5 {[%clk 0:02:17.8]} 17. Be2 {[%clk 0:02:29.2]} 17... c5 {[%clk 0:02:15]} 18.
Nh4 {[%clk 0:02:25.1]} 18... Rfd8 {[%clk 0:02:13.8]} 19. f4 {[%clk 0:02:25.2]}
19... Ng6 {[%clk 0:02:03.8]} 20. Nf3 {[%clk 0:02:24.2]} 20... Bf5 {[%clk
0:01:57.9]} 21. Rhg1 {[%clk 0:02:14.8]} 21... Be4 {[%clk 0:01:54.7]} 22. Nd2
{[%clk 0:02:13.7]} 22... f5 {[%clk 0:01:52.2]} 23. g4 {[%clk 0:02:12.1]} 23...
d4 {[%clk 0:01:48.3]} 24. gxf5 {[%clk 0:02:06.8]} 24... Bxf5 {[%clk 0:01:45.5]}
25. e4 {[%clk 0:02:07.1]} 25... Bxh3 {[%clk 0:01:40.2]} 26. f5 {[%clk
0:02:03.8]} 1-0

[Event "Early-Titled-Tuesday-Blitz-September-12-2023"]
[Site "Chess.com"]
[Date "2023.09.12"]
[Round "4"]
[White "Irishchessman16"]
[Black "FredddieCroderg"]
[Result "0-1"]
[WhiteElo "2483"]
[BlackElo "2297"]
[TimeControl "180+1"]
[EndTime "8:34:49 PDT"]
[Termination "FredddieCroderg won by resignation"]

1. e4 {[%clk 0:03:00.9]} 1... c5 {[%clk 0:02:48.1]} 2. f4 {[%clk 0:02:55.2]}
2... d5 {[%clk 0:02:47.8]} 3. Bb5+ {[%clk 0:02:51.6]} 3... Bd7 {[%clk
0:02:42.2]} 4. Bxd7+ {[%clk 0:02:50.1]} 4... Qxd7 {[%clk 0:02:43.1]} 5. exd5
{[%clk 0:02:47.7]} 5... Nf6 {[%clk 0:02:41.5]} 6. c4 {[%clk 0:02:46]} 6... e6
{[%clk 0:02:39.3]} 7. dxe6 {[%clk 0:02:45]} 7... fxe6 {[%clk 0:02:39.1]} 8. Nf3
{[%clk 0:02:45]} 8... Nc6 {[%clk 0:02:39.6]} 9. O-O {[%clk 0:02:44.6]} 9...
O-O-O {[%clk 0:02:34.6]} 10. Nc3 {[%clk 0:02:43]} 10... Be7 {[%clk 0:02:26.4]}
11. Kh1 {[%clk 0:02:36.1]} 11... h6 {[%clk 0:02:25.1]} 12. Ne5 {[%clk
0:02:34.9]} 12... Nxe5 {[%clk 0:02:21.3]} 13. fxe5 {[%clk 0:02:34.3]} 13... Nh7
{[%clk 0:02:15.5]} 14. a3 {[%clk 0:02:24.1]} 14... Rhf8 {[%clk 0:02:13.7]} 15.
b4 {[%clk 0:02:21.2]} 15... Qd3 {[%clk 0:02:13.3]} 16. Rxf8 {[%clk 0:02:17.5]}
16... Rxf8 {[%clk 0:02:14.2]} 17. Bb2 {[%clk 0:02:16.1]} 17... Rf2 {[%clk
0:02:03]} 18. h3 {[%clk 0:01:59.1]} 18... Rxd2 {[%clk 0:01:21.2]} 19. Qc1 {[%clk
0:01:55.1]} 19... Bg5 {[%clk 0:01:14.8]} 0-1

[Event "Early-Titled-Tuesday-Blitz-September-12-2023"]
[Site "Chess.com"]
[Date "2023.09.12"]
[Round "4"]
[White "AsselLesbekova"]
[Black "AndreiITrifan"]
[Result "0-1"]
[WhiteElo "2337"]
[BlackElo "2628"]
[TimeControl "180+1"]
[EndTime "8:34:54 PDT"]
[Termination "AndreiITrifan won by resignation"]

1. e4 {[%clk 0:02:59.4]} 1... d6 {[%clk 0:02:59.1]} 2. d4 {[%clk 0:02:55]} 2...
Nf6 {[%clk 0:02:58.5]} 3. Nc3 {[%clk 0:02:54.6]} 3... g6 {[%clk 0:02:58.9]} 4.
Bg5 {[%clk 0:02:54.5]} 4... Bg7 {[%clk 0:02:58.2]} 5. e5 {[%clk 0:02:54.5]} 5...
Ng8 {[%clk 0:02:46.8]} 6. f4 {[%clk 0:02:38.6]} 6... c6 {[%clk 0:02:41.8]} 7.
exd6 {[%clk 0:02:29.2]} 7... Qxd6 {[%clk 0:02:41.1]} 8. Nce2 {[%clk 0:02:15.8]}
8... Nh6 {[%clk 0:02:29.7]} 9. c3 {[%clk 0:02:09.5]} 9... O-O {[%clk 0:02:24.3]}
10. Qb3 {[%clk 0:02:03.3]} 10... Nd7 {[%clk 0:02:18.3]} 11. O-O-O {[%clk
0:01:54.9]} 11... Nb6 {[%clk 0:02:17.2]} 12. Nf3 {[%clk 0:01:45.1]} 12... Be6
{[%clk 0:02:12.7]} 13. Qc2 {[%clk 0:01:22.6]} 13... Nf5 {[%clk 0:02:00.4]} 14.
Qb1 {[%clk 0:01:07.7]} 14... Ne3 {[%clk 0:01:54.9]} 15. Re1 {[%clk 0:01:05.3]}
15... Bf5 {[%clk 0:01:54.1]} 16. Qa1 {[%clk 0:01:05.4]} 16... Nc2 {[%clk
0:01:52.1]} 17. Qb1 {[%clk 0:01:05.3]} 17... Nxe1 {[%clk 0:01:51.5]} 0-1

[Event "Early-Titled-Tuesday-Blitz-September-12-2023"]
[Site "Chess.com"]
[Date "2023.09.12"]
[Round "4"]
[White "savitha1030"]
[Black "IMSlavin"]
[Result "1-0"]
[WhiteElo "2478"]
[BlackElo "2201"]
[TimeControl "180+1"]
[EndTime "8:35:01 PDT"]
[Termination "savitha1030 won by resignation"]

1. d4 {[%clk 0:03:00.9]} 1... Nc6 {[%clk 0:03:00.2]} 2. c4 {[%clk 0:03:01]} 2...
e5 {[%clk 0:03:00.1]} 3. d5 {[%clk 0:03:01.5]} 3... Nce7 {[%clk 0:03:00.6]} 4.
h4 {[%clk 0:03:01.1]} 4... h5 {[%clk 0:02:59.7]} 5. Nc3 {[%clk 0:02:54.3]} 5...
Ng6 {[%clk 0:02:58.8]} 6. e4 {[%clk 0:02:51.5]} 6... Bc5 {[%clk 0:02:56.8]} 7.
Be2 {[%clk 0:02:40.3]} 7... Nf6 {[%clk 0:02:55.8]} 8. Bg5 {[%clk 0:02:40.9]}
8... Be7 {[%clk 0:02:52]} 9. Bxf6 {[%clk 0:02:23.7]} 9... Bxf6 {[%clk
0:02:51.3]} 10. Bxh5 {[%clk 0:02:22.7]} 10... Bxh4 {[%clk 0:02:25.3]} 11. g3
{[%clk 0:02:17.5]} 11... Bf6 {[%clk 0:02:16.9]} 12. Qf3 {[%clk 0:02:16.8]} 12...
Kf8 {[%clk 0:01:26.5]} 13. Nge2 {[%clk 0:01:54]} 13... d6 {[%clk 0:01:25]} 14.
O-O-O {[%clk 0:01:52]} 14... Bd7 {[%clk 0:01:15.2]} 15. Bxg6 {[%clk 0:01:51.9]}
15... Rh7 {[%clk 0:00:57.2]} 16. Bxh7 {[%clk 0:01:50.2]} 1-0

[Event "Early-Titled-Tuesday-Blitz-September-12-2023"]
[Site "Chess.com"]
[Date "2023.09.12"]
[Round "4"]
[White "stollenmonster"]
[Black "Zavgorodniy_Sergiy"]
[Result "1-0"]
[WhiteElo "2830"]
[BlackElo "2523"]
[TimeControl "180+1"]
[EndTime "8:35:04 PDT"]
[Termination "stollenmonster won by resignation"]

1. e4 {[%clk 0:03:00.9]} 1... e6 {[%clk 0:02:58.2]} 2. Nc3 {[%clk 0:02:59.9]}
2... d5 {[%clk 0:02:58.4]} 3. g3 {[%clk 0:03:00.4]} 3... b6 {[%clk 0:02:47.8]}
4. Bg2 {[%clk 0:03:00.1]} 4... Bb7 {[%clk 0:02:48.1]} 5. Nge2 {[%clk 0:02:59.8]}
5... dxe4 {[%clk 0:02:46.9]} 6. Nxe4 {[%clk 0:02:56.6]} 6... Qc8 {[%clk
0:02:47.1]} 7. O-O {[%clk 0:02:54.9]} 7... Nd7 {[%clk 0:02:47.3]} 8. d4 {[%clk
0:02:54.9]} 8... Ngf6 {[%clk 0:02:45.5]} 9. N2c3 {[%clk 0:02:55.2]} 9... Be7
{[%clk 0:02:43.2]} 10. Re1 {[%clk 0:02:53.8]} 10... Nxe4 {[%clk 0:02:42.2]} 11.
Nxe4 {[%clk 0:02:53.7]} 11... Nf6 {[%clk 0:02:41.3]} 12. Nxf6+ {[%clk
0:02:45.8]} 12... Bxf6 {[%clk 0:02:42.2]} 13. d5 {[%clk 0:02:46.5]} 13... O-O
{[%clk 0:02:33.5]} 14. dxe6 {[%clk 0:02:45.1]} 14... fxe6 {[%clk 0:02:33.8]} 15.
c3 {[%clk 0:02:37]} 15... Bxg2 {[%clk 0:02:30.8]} 16. Kxg2 {[%clk 0:02:37.9]}
16... Qb7+ {[%clk 0:02:30.7]} 17. Kg1 {[%clk 0:02:34.9]} 17... Rae8 {[%clk
0:02:29.3]} 18. Be3 {[%clk 0:02:30.4]} 18... Be7 {[%clk 0:02:23.5]} 19. Qg4
{[%clk 0:02:27.1]} 19... Bd6 {[%clk 0:02:19.5]} 20. Rad1 {[%clk 0:02:16.2]}
20... e5 {[%clk 0:02:18.2]} 21. h4 {[%clk 0:02:05.9]} 21... Kh8 {[%clk
0:02:15.6]} 22. h5 {[%clk 0:02:05.6]} 22... h6 {[%clk 0:02:14.8]} 23. c4 {[%clk
0:01:52.5]} 23... Rf7 {[%clk 0:02:12.2]} 24. b3 {[%clk 0:01:50.6]} 24... Ref8
{[%clk 0:02:11.1]} 25. Qe6 {[%clk 0:01:46.7]} 25... Qf3 {[%clk 0:02:02.6]} 26.
Qh3 {[%clk 0:01:30.2]} 26... Rf5 {[%clk 0:02:02.1]} 27. Qg2 {[%clk 0:01:25.7]}
27... Qxh5 {[%clk 0:02:01]} 28. g4 {[%clk 0:01:24.8]} 1-0

[Event "Early-Titled-Tuesday-Blitz-September-12-2023"]
[Site "Chess.com"]
[Date "2023.09.12"]
[Round "4"]
[White "Raskolnikov6"]
[Black "wannabe2700"]
[Result "0-1"]
[WhiteElo "2272"]
[BlackElo "2625"]
[TimeControl "180+1"]
[EndTime "8:35:15 PDT"]
[Termination "wannabe2700 won by resignation"]

1. d4 {[%clk 0:02:58.9]} 1... d6 {[%clk 0:03:00.9]} 2. c4 {[%clk 0:02:59.2]}
2... g6 {[%clk 0:02:59.6]} 3. e4 {[%clk 0:02:58.2]} 3... Bg7 {[%clk 0:02:59.7]}
4. Nc3 {[%clk 0:02:56.5]} 4... e5 {[%clk 0:02:52.8]} 5. dxe5 {[%clk 0:02:56.1]}
5... dxe5 {[%clk 0:02:52]} 6. Qxd8+ {[%clk 0:02:51.9]} 6... Kxd8 {[%clk
0:02:52.9]} 7. Be3 {[%clk 0:02:49.3]} 7... c6 {[%clk 0:02:52.8]} 8. Nf3 {[%clk
0:02:45]} 8... f6 {[%clk 0:02:41.5]} 9. Nd2 {[%clk 0:02:35.3]} 9... Be6 {[%clk
0:02:40.5]} 10. Be2 {[%clk 0:02:30.7]} 10... Nd7 {[%clk 0:02:40]} 11. O-O-O
{[%clk 0:02:30.2]} 11... Ne7 {[%clk 0:02:36]} 12. h4 {[%clk 0:02:26.6]} 12... h5
{[%clk 0:02:35.1]} 13. Nb3 {[%clk 0:02:23.8]} 13... Kc7 {[%clk 0:02:15.3]} 14.
Nc5 {[%clk 0:02:20.2]} 14... Nxc5 {[%clk 0:02:15.5]} 15. Bxc5 {[%clk 0:02:20.8]}
15... Nc8 {[%clk 0:02:16.1]} 16. b3 {[%clk 0:02:09.2]} 16... b6 {[%clk
0:02:16.1]} 17. Be3 {[%clk 0:02:07.4]} 17... Bh6 {[%clk 0:02:15.9]} 18. Rd2
{[%clk 0:01:56.7]} 18... Bxe3 {[%clk 0:02:13.7]} 19. fxe3 {[%clk 0:01:57.6]}
19... Nd6 {[%clk 0:02:12.3]} 20. Rf1 {[%clk 0:01:53.5]} 20... Rhf8 {[%clk
0:02:11.3]} 21. Bf3 {[%clk 0:01:41.8]} 21... Rad8 {[%clk 0:02:09.9]} 22. Rfd1
{[%clk 0:01:38.3]} 22... Nb7 {[%clk 0:02:09]} 23. Rxd8 {[%clk 0:01:34.8]} 23...
Nxd8 {[%clk 0:02:09.9]} 24. Rxd8 {[%clk 0:01:34.7]} 24... Rxd8 {[%clk
0:02:08.9]} 25. Kc2 {[%clk 0:01:25.5]} 25... Rh8 {[%clk 0:02:05.6]} 26. Nd1
{[%clk 0:01:12.5]} 26... g5 {[%clk 0:02:02.7]} 27. g3 {[%clk 0:01:02.1]} 27...
gxh4 {[%clk 0:02:02.7]} 28. gxh4 {[%clk 0:01:03]} 28... Bg4 {[%clk 0:02:02.9]}
0-1